[Event "Moscow Open-F 2019"]
[Site "Moscow"]
[Date "2019.01.28"]
[Round "5"]
[White "Pischasov, Alexander"]
[Black "Grachev, Andrey"]
[Result "*"]
[WhiteElo "2022"]
[BlackElo "2181"]
[Annotator "NA RC"]
[PlyCount "60"]
[EventDate "2019.01.26"]
[EventType "swiss"]
[EventCountry "RUS"]
[SourceTitle "playchess.com"]
[Source "ChessBase"]
[SourceQuality "1"]
[TimeControl "40/5400+30:1800+30"]

1. d4 {[%emt 0:00:00]} d6 {[%emt 0:09:45]} 2. Nf3 {[%emt 0:01:30]} g6 {[%emt 0:00:10]} 3. e4 {[%emt 0:01:02]} Nf6 {[%emt 0:01:19]} 4. Nbd2 {[%emt 0:00:55]} a6 {[%emt 0:00:30]} 5. a4 {[%emt 0:00:40]} Bg7 {[%emt 0:00:15]} 6. Be2 {[%emt 0:01:57]} c5 {[%emt 0:02:05]} 7. dxc5 {[%emt 0:00:21]} dxc5 {[%emt 0:00:02]} 8. O-O {[%emt 0:00:10]} O-O {[%emt 0:07:01]} 9. c3 {[%emt 0:00:11]} Qc7 {[%emt 0:02:05]} 10. Qc2 {[%emt 0:00:17]} b6 {[%emt 0:02:49]} 11. Re1 {[%emt 0:04:39]} Bb7 {[%emt 0:06:55]} 12. Bf1 {[%emt 0:00:24]} Nc6 {[%emt 0:04:58]} 13. Nc4 {[%emt 0:01:31]} Ng4 {[%emt 0:08:15]} 14. Qb3 {[%emt 0:15:11]} Bd4 {[%emt 0:18:48]} 15. Qxb6 {[%emt 0:19:53]} Bxf2+ {[%emt 0:21:04]} 16. Kh1 {[%emt 0:00:07]} Qxb6 {[%emt 0:03:52]} 17. Nxb6 {[%emt 0:00:02]} Rad8 {[%emt 0:00:08]} 18. Bf4 {[%emt 0:15:02]} Bxe1 {[%emt 0:02:40]} 19. Rxe1 {[%emt 0:00:09]} Nf2+ {[%emt 0:00:31]} 20. Kg1 {[%emt 0:00:06]} Nd3 {[%emt 0:00:03]} 21. Bxd3 {[%emt 0:00:13]} Rxd3 {[%emt 0:00:02]} 22. Kf2 {[%emt 0:04:05]} f5 {[%emt 0:07:51]} 23. e5 {[%emt 0:06:20]} Na5 {[%emt 0:12:22]} 24. e6 {[%emt 0:01:57]} Bxf3 {[%emt 0:03:48]} 25. gxf3 {[%emt 0:00:08]} Rfd8 {[%emt 0:00:03]} 26. h4 {[%emt 0:09:04]} Rd1 {[%emt 0:01:28]} 27. Re2 {[%emt 0:00:07]} R8d3 {[%emt 0:03:29]} (27... Ra1 $19 28. Nd7 Rxa4) 28. Nd7 {[%emt 0:02:30]} c4 {[%emt 0:01:55]} 29. Nc5 {[%emt 0:01:06]} Rd5 {[%emt 0:00:57]} 30. Nxa6 {[%emt 0:00:20]} Ra1 $11 {[%emt 0:01:38]} (30... Nb3 $17 31. Nb4 Rc5) *

[Event "Moscow Open-F 2019"]
[Site "Moscow"]
[Date "2019.01.29"]
[Round "5"]
[White "Kuzub, Pavel"]
[Black "Derevianchenko, Ilia"]
[Result "*"]
[ECO "A04"]
[WhiteElo "1976"]
[BlackElo "2339"]
[Annotator "RC"]
[PlyCount "24"]
[EventDate "2019.01.26"]
[EventType "swiss"]
[EventCountry "RUS"]
[SourceTitle "playchess.com"]
[Source "ChessBase"]
[SourceQuality "1"]
[TimeControl "40/5400+30:1800+30"]

1. Nf3 {[%emt 0:08:18]} g6 {[%emt 0:16:53]} 2. g3 {[%emt 0:00:15]} Bg7 {[%emt 0:02:34]} 3. Bg2 {[%emt 0:00:05]} d6 {[%emt 0:00:05]} 4. O-O {[%emt 0:00:07]} e5 {[%emt 0:00:02]} 5. d3 {[%emt 0:00:16]} f5 {[%emt 0:01:10]} 6. Nc3 {[%emt 0:01:09]} Nf6 {[%emt 0:00:10]} 7. e4 {[%emt 0:00:46]} O-O {[%emt 0:00:28]} 8. Bg5 {[%emt 0:02:29]} h6 {[%emt 0:00:37]} 9. Bxf6 {[%emt 0:01:11]} Qxf6 {[%emt 0:00:19]} 10. exf5 {[%emt 0:00:25]} gxf5 {[%emt 0:00:37]} 11. Nh4 {[%emt 0:00:52]} c6 {[%emt 0:51:42]} 12. f4 {[%emt 0:01:02]} Na6 {[%emt 0:00:55]} *

[Event "Moscow Open-F 2019"]
[Site "Moscow"]
[Date "2019.01.29"]
[Round "5"]
[White "Zhaksygulov, Askarbai"]
[Black "Indzhiev, Aldar"]
[Result "*"]
[ECO "B51"]
[WhiteElo "1795"]
[BlackElo "2218"]
[Annotator "NA RC"]
[PlyCount "40"]
[EventDate "2019.01.26"]
[EventType "swiss"]
[EventCountry "RUS"]
[SourceTitle "playchess.com"]
[Source "ChessBase"]
[SourceQuality "1"]
[TimeControl "40/5400+30:1800+30"]

1. e4 {[%emt 0:05:07]} c5 {[%emt 0:00:00]} 2. Nf3 {[%emt 0:00:03]} d6 {[%emt 0:00:00]} 3. Bb5+ {[%emt 0:00:19]} Nd7 {[%emt 0:00:00]} 4. d4 {[%emt 0:00:15]} cxd4 {[%emt 0:00:00]} 5. Qxd4 {[%emt 0:00:07]} Ngf6 {[%emt 0:02:19]} 6. Nc3 {[%emt 0:00:02]} a6 {[%emt 0:01:12]} 7. Bxd7+ {[%emt 0:00:05]} Bxd7 {[%emt 0:00:05]} 8. Bg5 {[%emt 0:00:03]} e6 {[%emt 0:00:45]} 9. O-O {[%emt 0:03:32]} h6 {[%emt 0:01:35]} 10. Bh4 {[%emt 0:01:05]} Be7 {[%emt 0:01:53]} 11. Nd2 {[%emt 0:02:46]} e5 {[%emt 0:01:13]} 12. Qd3 {[%emt 0:01:39]} g5 {[%emt 0:00:37]} 13. Bg3 {[%emt 0:00:02]} Rc8 {[%emt 0:06:10]} 14. Nc4 {[%emt 0:06:45]} Be6 {[%emt 0:01:39]} 15. Ne3 {[%emt 0:01:47]} Qb6 {[%emt 0:04:54]} 16. Rab1 {[%emt 0:06:46]} h5 {[%emt 0:00:47]} 17. h4 {[%emt 0:03:28]} Ng4 {[%emt 0:08:08]} 18. Ned5 {[%emt 0:05:32]} Qd4 {[%emt 0:08:06]} 19. Qf3 {[%emt 0:11:56]} Bd8 {[%emt 0:05:44]} 20. Rfd1 {[%emt 0:03:27]} Qa7 *

[Event "Moscow Open-F 2019"]
[Site "Moscow"]
[Date "2019.01.30"]
[Round "6"]
[White "Indzhiev, Aldar"]
[Black "Chernyavsky, Alexander"]
[Result "*"]
[ECO "E90"]
[WhiteElo "2218"]
[BlackElo "2357"]
[Annotator "RC"]
[PlyCount "68"]
[EventDate "2019.01.26"]
[EventType "swiss"]
[EventCountry "RUS"]
[SourceTitle "playchess.com"]
[Source "ChessBase"]
[SourceQuality "1"]
[TimeControl "40/5400+30:1800+30"]

1. c4 {[%emt 0:00:00]} g6 {[%emt 0:01:06]} 2. d4 {[%emt 0:00:01]} Bg7 {[%emt 0:00:05]} 3. e4 {[%emt 0:00:12]} d6 {[%emt 0:00:17]} 4. Nf3 {[%emt 0:00:17]} Nf6 {[%emt 0:00:15]} 5. Nc3 {[%emt 0:00:06]} O-O {[%emt 0:01:39]} 6. h3 {[%emt 0:00:10]} c5 {[%emt 0:01:38]} 7. Be3 {[%emt 0:08:05]} cxd4 8. Nxd4 {[%emt 0:00:07]} Nc6 {[%emt 0:00:53]} 9. Be2 {[%emt 0:00:16]} Bd7 {[%emt 0:00:07]} 10. O-O {[%emt 0:00:11]} Nxd4 11. Bxd4 {[%emt 0:00:06]} Bc6 {[%emt 0:00:08]} 12. Qd3 {[%emt 0:09:32]} Nd7 {[%emt 0:02:04]} 13. Bxg7 Kxg7 {[%emt 0:00:02]} 14. b4 {[%emt 0:05:28]} b6 {[%emt 0:17:27]} 15. Rfc1 {[%emt 0:11:24]} f5 {[%emt 0:08:10]} 16. Qd4+ {[%emt 0:01:45]} Rf6 {[%emt 0:02:33]} 17. exf5 {[%emt 0:06:27]} gxf5 {[%emt 0:00:10]} 18. Nd5 {[%emt 0:00:09]} e5 {[%emt 0:03:01]} 19. Qh4 {[%emt 0:00:26]} Rg6 {[%emt 0:21:39]} 20. Qxd8 {[%emt 0:00:18]} Rxd8 {[%emt 0:00:06]} 21. Ne7 {[%emt 0:07:12]} Rxg2+ {[%emt 0:02:43]} 22. Kf1 {[%emt 0:00:01]} Ba8 {[%emt 0:00:50]} 23. Nxf5+ {[%emt 0:00:21]} Kh8 {[%emt 0:03:16]} 24. Nxd6 {[%emt 0:23:49]} Rf8 {[%emt 0:00:43]} 25. f3 {[%emt 0:00:04]} Rh2 {[%emt 0:01:35]} 26. c5 {[%emt 0:00:18]} bxc5 {[%emt 0:00:40]} 27. bxc5 {[%emt 0:00:19]} Bc6 28. Rab1 {[%emt 0:02:38]} e4 {[%emt 0:15:03]} 29. Bb5 {[%emt 0:04:33]} Bxb5+ {[%emt 0:01:43]} 30. Nxb5 Rxf3+ {[%emt 0:01:27]} 31. Kg1 {[%emt 0:00:24]} Rff2 {[%emt 0:00:11]} 32. c6 {[%emt 0:02:31]} Ne5 {[%emt 0:00:39]} 33. Nd4 {[%emt 0:03:24]} Nf3+ {[%emt 0:00:12]} 34. Nxf3 {[%emt 0:00:03]} exf3 {[%emt 0:00:08]} *

[Event "Moscow Open-F 2019"]
[Site "Moscow"]
[Date "2019.01.30"]
[Round "6"]
[White "Ufimtsev, Egor"]
[Black "Nyudleev, Dolgan"]
[Result "0-1"]
[ECO "A11"]
[WhiteElo "2160"]
[BlackElo "2333"]
[Annotator "NA RC"]
[PlyCount "102"]
[EventDate "2019.01.26"]
[EventType "swiss"]
[EventCountry "RUS"]
[SourceTitle "playchess.com"]
[Source "ChessBase"]
[SourceQuality "1"]
[TimeControl "40/5400+30:1800+30"]

{[%evp 11,102,73,68,62,71,38,69,58,69,51,82,32767,32767,0,0,17,32767,33,20,50,32767,37,78,52,52,-94,-122,-106,-106,-104,-122,-118,32767,32767,32767,32767,32767,-64,-52,-62,-16,-6,-24,-8,-4,-15,-6,-6,-5,-10,-11,-8,0,0,90,0,0,32767,32767,32767,32767,0,0,-356,-310,32767,-358,32767,-311,32767,32767,-349,32767,-35,32767,-33,32767,-290,-349,-428,32767,-181,-195,-171,-177,-175,-171,-152,32767,32767,-175,-29997,-29998]} 1. c4 c6 {[%emt 0:16:54]} 2. Nf3 {[%emt 0:11:50]} d5 {[%emt 0:00:11]} 3. d4 {[%emt 0:00:06]} dxc4 {[%emt 0:00:05]} 4. e3 {[%emt 0:00:30]} Be6 {[%emt 0:00:02]} 5. Nc3 {[%emt 0:00:11]} Nf6 {[%emt 0:00:16]} 6. Ng5 {[%emt 0:12:28] LiveBook: 65 Games D25: Queen's Gambit Accepted: 4 e3: sidelines and 4...Bg4} Bg4 {[%emt 0:06:37]} 7. f3 $1 {[%emt 0:15:53]} Bh5 {[%emt 0:01:19]} 8. Bxc4 {[%emt 0:00:32]} e6 {[%emt 0:00:04]} 9. Nh3 {[%emt 0:05:44]} Be7 $146 {[%emt 0:01:01]} ({Predecessor:} 9... Bd6 10. e4 Bc7 11. Nf4 Bg6 12. Be3 b5 13. Bb3 a5 {1-0 (39) Hadzimanolis,A (2329)-Kovchan,A (2515) Kharkov 2008}) 10. Nf4 {[%emt 0:00:49]} Bg6 {[%emt 0:00:27]} 11. Qb3 {[%emt 0:07:18]} (11. e4 $14) 11... b5 {[%emt 0:35:08]} 12. Bxe6 {[%emt 0:23:51]} fxe6 {[%emt 0:01:43]} 13. Nxe6 {[%emt 0:00:04]} Qd6 {[%emt 0:07:42]} 14. Nxg7+ {[%emt 0:05:16]} Kd7 {[%emt 0:01:04]} 15. e4 {[%emt 0:00:09]} Bf8 {[%emt 0:02:06]} 16. e5 {[%emt 0:07:06]} Qe7 {[%emt 0:03:20] Trapped Piece} 17. Bg5 $1 {[%emt 0:00:04] Pin} Bxg7 {[%emt 0:00:29]} 18. O-O-O {[%emt 0:00:02]} (18. O-O $1 $14 {is the one way to stay ahead.} h6 19. Nd5) 18... Qe6 {[%emt 0:08:27]} 19. Qxe6+ {[%emt 0:10:03]} Kxe6 {[%emt 0:00:07]} 20. exf6 {[%emt 0:00:04]} Bxf6 {[%emt 0:00:48]} 21. d5+ cxd5 {[%emt 0:03:45]} 22. Rhe1+ {[%emt 0:00:46]} Kf7 {[%emt 0:00:23]} 23. Bxf6 {[%emt 0:00:03]} Kxf6 {[%emt 0:00:01]} 24. Nxd5+ {[%emt 0:10:58]} Kg7 $1 {[%emt 0:00:40]} 25. Ne7 {[%emt 0:04:20]} a6 {[%emt 0:06:01]} 26. Nxg6 {[%emt 0:03:44]} hxg6 {[%emt 0:00:02]} 27. Re7+ {[%emt 0:00:28]} Kf6 {[%emt 0:03:49]} 28. Rc7 {[%emt 0:00:19]} a5 {[%emt 0:00:49]} 29. Rd6+ {[%emt 0:01:01]} Ke5 {[%emt 0:00:11]} 30. Rxg6 {[%emt 0:00:34]} Na6 {[%emt 0:00:16]} 31. Re7+ {[%emt 0:00:29]} Kf5 {[%emt 0:00:58]} 32. Ree6 {[%emt 0:00:32]} Rac8+ {[%emt 0:00:28] [#]} (32... Nb4 $11 {keeps the balance.}) 33. Kb1 {[%emt 0:00:05]} ({White should play} 33. Kd2 $1 $16 {[%cal Rd2e3]} Nc7 34. g4+ Kf4 35. Rgf6+ Kg5 36. Rg6+ Kh4 37. Rd6) 33... Rxh2 {[%emt 0:00:29]} 34. Rgf6+ {[%emt 0:00:46]} Kg5 {[%emt 0:00:01]} 35. a3 {[%emt 0:00:31]} Nc5 {[%emt 0:00:58]} 36. Rg6+ {[%emt 0:00:12]} (36. f4+ Kg4 37. Rg6+ Kxf4 38. Rgf6+ Kg5 39. Rg6+ Kf5 40. Rgf6+ Kg5 41. Rg6+ Kf5 42. Rgf6+ Kg5 $11) 36... Kf4 {[%emt 0:00:28]} (36... Kf5 $5 37. Rgf6+ $8) 37. Rb6 $2 {[%emt 0:00:49]} (37. g3+ $1 $11 {and White has nothing to worry.} Kxf3 38. Rgf6+ Kxg3 39. Rg6+ Kf3 40. Rgf6+ Kg3 41. Rg6+ Kh4 42. Rh6+ Kg4 43. Rhg6+ Kf4 44. Rgf6+ Kg3) 37... a4 {[%emt 0:00:42]} 38. Rxb5 {[%emt 0:00:34]} Rh1+ {[%emt 0:00:19]} 39. Ka2 {[%emt 0:00:02]} Ke3 {[%emt 0:00:27]} 40. Rg4 {[%emt 0:00:23]} Kd3 {[%emt 0:00:44]} 41. Rbb4 {[%emt 0:30:29]} Rc1 {[%emt 0:30:32]} 42. Rgd4+ {[%emt 0:00:22]} Ke3 {[%emt 0:00:19]} 43. Rdc4 {[%emt 0:01:12]} Nd3 {[%emt 0:00:37]} 44. Re4+ $2 {[%emt 0:00:16]} (44. Rxc1 $11 Nxb4+ 45. Kb1) 44... Kd2 {[%emt 0:00:30]} 45. Rb6 {[%emt 0:00:40]} R8c4 {[%emt 0:00:35]} 46. Rxc4 {[%emt 0:00:38]} Rxc4 {[%emt 0:00:02]} 47. Kb1 {[%emt 0:00:30]} Rc1+ {[%emt 0:00:55]} 48. Ka2 {[%emt 0:00:02]} Rc2 {[%emt 0:00:25]} 49. Kb1 {[%emt 0:00:18]} Rc1+ {[%emt 0:00:19]} 50. Ka2 {[%emt 0:00:02]} Rg1 {[%emt 0:00:31]} 51. g4 $2 {[%emt 0:00:52]} (51. Rd6 $19) 51... Nc1+ {[%emt 0:00:03]} 0-1

[Event "Moscow Open-F 2019"]
[Site "Moscow"]
[Date "2019.01.31"]
[Round "7"]
[White "Nyudleev, Dolgan"]
[Black "Ivlev, Aleksey"]
[Result "1/2-1/2"]
[ECO "C49"]
[WhiteElo "2333"]
[BlackElo "2326"]
[Annotator "NA RC"]
[PlyCount "80"]
[EventDate "2019.01.26"]
[EventType "swiss"]
[EventCountry "RUS"]
[SourceTitle "playchess.com"]
[Source "ChessBase"]
[SourceQuality "1"]
[TimeControl "40/5400+30:1800+30"]

{[%evp 8,78,16,6,8,-4,32767,32767,20,-6,0,0,0,0,-5,14,0,0,0,0,0,-13,0,0,0,-12,0,-33,-31,32767,-25,-20,32767,-21,-19,-19,-15,-18,-11,-34,0,0,0,32767,-17,-12,-22,32767,-16,32767,32767,-16,32767,32767,32767,32767,-8,-24,32767,-16,-22,-21,-27,32767,-27,-30,32767,-21,-16,-29,-23,-24,0]} 1. e4 {[%emt 0:20:12]} e5 {[%emt 0:00:00]} 2. Nf3 {[%emt 0:00:20]} Nc6 {[%emt 0:00:00]} 3. Nc3 {[%emt 0:00:07]} Nf6 {[%emt 0:00:00]} 4. Bb5 {[%emt 0:00:08]} Bb4 {[%emt 0:01:27]} 5. O-O {[%emt 0:00:14]} O-O {[%emt 0:00:04]} 6. Nd5 {[%emt 0:00:04]} Nxd5 {[%emt 0:03:13]} 7. exd5 {[%emt 0:00:02]} e4 {[%emt 0:00:46]} 8. dxc6 {[%emt 0:02:01]} dxc6 {[%emt 0:01:37]} 9. Be2 {[%emt 0:00:52]} exf3 {[%emt 0:00:08]} 10. Bxf3 {[%emt 0:00:02]} Qf6 $146 {[%emt 0:01:48] C49: Four Knights: 4 Bb5 Bb4} ({Predecessor:} 10... Re8 11. d4 Be6 12. c3 Bd6 13. Be3 Qf6 {½-½ (28) Jerez Perez,A (2300)-Narciso Dublan,M (2450) Barcelona 1998}) 11. d4 {[%emt 0:01:41]} Be6 {[%emt 0:02:09]} 12. c3 {[%emt 0:01:42]} Bd6 {[%emt 0:00:07]} 13. Re1 {[%emt 0:06:44]} Rfe8 {[%emt 0:03:00]} 14. Be3 {[%emt 0:02:09]} Bd5 {[%emt 0:00:37]} ({Predecessor:} 14... Re7 15. Qd3 Bd5 16. Bxd5 cxd5 17. Bd2 Rae8 18. Rxe7 Rxe7 {½-½ (28) Jerez Perez,A (2300)-Narciso Dublan,M (2450) Barcelona 1998}) 15. Bxd5 {[%emt 0:04:05]} cxd5 {[%emt 0:00:01]} 16. Qh5 {[%emt 0:02:32]} c6 {[%emt 0:01:12]} 17. Qg5 {[%emt 0:02:41]} Qxg5 {[%emt 0:06:25]} 18. Bxg5 {[%emt 0:00:14]} f6 {[%emt 0:01:07]} 19. Bd2 {[%emt 0:00:44]} Kf7 {[%emt 0:00:06]} 20. g3 {[%emt 0:00:41]} h5 {[%emt 0:01:23]} 21. Rxe8 {[%emt 0:01:02]} Kxe8 {[%emt 0:01:15]} 22. Re1+ {[%emt 0:00:17]} Kd7 {[%emt 0:00:05]} 23. Kg2 {[%emt 0:00:54]} Re8 {[%emt 0:05:12]} 24. Rxe8 {[%emt 0:00:41]} Kxe8 {[%emt 0:00:01]} 25. f4 {[%emt 0:00:58]} g6 {[%emt 0:02:09]} 26. Kf3 {[%emt 0:00:39]} f5 {[%emt 0:00:53]} 27. Ke3 {[%emt 0:00:51]} Kd7 {[%emt 0:00:17]} 28. Kd3 {[%emt 0:00:16]} Ke6 {[%emt 0:00:06]} 29. Be3 {[%emt 0:00:16]} Be7 {[%emt 0:00:47]} 30. h4 {[%emt 0:00:21]} Bf6 {[%emt 0:00:38]} 31. Bd2 {[%emt 0:00:22]} Kd6 {[%emt 0:00:12]} 32. Be3 {[%emt 0:00:29]} a5 {[%emt 0:00:21]} 33. a4 {[%emt 0:00:22]} b5 {[%emt 0:00:50]} 34. b3 {[%emt 0:00:06]} Kc7 {[%emt 0:00:22]} 35. Bc1 {[%emt 0:00:42]} Be7 {[%emt 0:00:19]} 36. Be3 {[%emt 0:01:48]} Kb6 {[%emt 0:00:43]} 37. Bf2 {[%emt 0:01:29]} Bf8 {[%emt 0:01:36]} 38. Be3 {[%emt 0:00:23]} Ba3 {[%emt 0:01:10]} 39. Bf2 {[%emt 0:02:30]} Bf8 $11 {[%emt 0:00:38]} 40. Be3 {[%emt 0:00:13]} Be7 {[%emt 0:01:10] Ke4} 1/2-1/2

[Event "Moscow Open-F 2019"]
[Site "Moscow"]
[Date "2019.01.31"]
[Round "7"]
[White "Aleksandrovskiy, Dmitriy"]
[Black "Grachev, Andrey"]
[Result "1-0"]
[ECO "A00"]
[WhiteElo "2299"]
[BlackElo "2181"]
[Annotator "NA"]
[PlyCount "61"]
[EventDate "2019.01.26"]
[EventType "swiss"]
[EventCountry "RUS"]
[SourceTitle "playchess.com"]
[Source "ChessBase"]
[SourceQuality "1"]
[TimeControl "40/5400+30:1800+30"]

{[%evp 8,49,12,5,32767,8,0,0,9,0,3,32767,0,0,36,33,36,38,32767,37,52,50,49,40,87,52,89,32767,102,114,89,87,174,112,456,217,209,32767,32767,32767,122,116,111,127]} 1. g3 {[%emt 0:19:28]} d6 {[%emt 0:01:47]} 2. Bg2 {[%emt 0:00:30]} e5 {[%emt 0:00:34]} 3. c4 {[%emt 0:00:05]} g6 {[%emt 0:01:00]} 4. Nc3 {[%emt 0:00:09]} Bg7 {[%emt 0:00:06]} 5. e3 {[%emt 0:00:16]} f5 {[%emt 0:03:30]} 6. d3 {[%emt 0:00:12] LiveBook: 152 Games} Nf6 {[%emt 0:00:06]} 7. Nge2 {[%emt 0:00:07]} O-O {[%emt 0:00:20]} 8. O-O {[%emt 0:00:11]} c6 {[%emt 0:03:56]} 9. b4 {[%emt 0:00:17]} Be6 {[%emt 0:01:32]} 10. b5 {[%emt 0:08:07]} Qc8 {[%emt 0:13:08]} 11. Ba3 {[%emt 0:04:47]} Rd8 {[%emt 0:01:05]} 12. bxc6 {[%emt 0:04:16]} bxc6 {[%emt 0:00:12]} 13. Qa4 {[%emt 0:00:54]} Bf7 {[%emt 0:05:55]} 14. Rab1 {[%emt 0:05:00]} Be8 {[%emt 0:08:59]} 15. Qa5 {[%emt 0:04:41]} Bf8 {[%emt 0:00:49]} 16. e4 {[%emt 0:09:59]} fxe4 {[%emt 0:12:38]} 17. Nxe4 {[%emt 0:00:24]} Nxe4 {[%emt 0:00:05]} 18. Bxe4 {[%emt 0:00:13]} Nd7 {[%emt 0:09:35]} 19. f4 {[%emt 0:01:08]} exf4 {[%emt 0:01:54]} (19... Bf7 $16) 20. Nxf4 {[%emt 0:04:35]} Nc5 $2 {[%emt 0:00:06] [#]} (20... Bf7 $16 {is more resistant.}) 21. Bg2 {[%emt 0:01:07]} (21. Nd5 $142 $1 {[%mdl 512]} Nxe4 (21... cxd5 22. Bxd5+) 22. dxe4) 21... Bg7 {[%emt 0:00:50]} 22. Kh1 {[%emt 0:03:45]} g5 {[%emt 0:04:36]} 23. d4 {[%emt 0:04:59]} Bxd4 {[%emt 0:03:34] [#]} 24. Qd2 $1 {[%emt 0:00:26]} Bg7 {[%emt 0:01:16] [#]} 25. Nd5 $16 {[%emt 0:03:40]} cxd5 {[%emt 0:11:34]} 26. Bxd5+ {[%emt 0:00:04]} Ne6 {[%emt 0:00:50]} 27. Rb7 {[%emt 0:01:33]} Qxb7 {[%emt 0:06:14]} 28. Bxb7 {[%emt 0:00:06]} d5 {[%emt 0:00:03]} 29. Bxa8 {[%emt 0:00:35]} dxc4 {[%emt 0:00:07]} 30. Qe3 {[%emt 0:03:52]} Nc7 {[%emt 0:00:47]} 31. Qe7 {[%emt 0:00:17]} 1-0

[Event "Moscow Open-F 2019"]
[Site "Moscow"]
[Date "2019.01.31"]
[Round "7"]
[White "Rudometov, Maxim"]
[Black "Kuzub, Pavel"]
[Result "1-0"]
[ECO "A11"]
[WhiteElo "2265"]
[BlackElo "1976"]
[Annotator "NA"]
[PlyCount "103"]
[EventDate "2019.01.26"]
[EventType "swiss"]
[EventCountry "RUS"]
[SourceTitle "playchess.com"]
[Source "ChessBase"]
[SourceQuality "1"]
[TimeControl "40/5400+30:1800+30"]

1. c4 {[%emt 0:00:16]} c6 {[%emt 0:20:04]} 2. Nc3 {[%emt 0:00:35]} d5 {[%emt 0:00:31]} 3. e3 {[%emt 0:00:38]} Nf6 {[%emt 0:00:08]} 4. Nf3 {[%emt 0:00:34]} e6 {[%emt 0:02:40]} 5. b3 {[%emt 0:00:27]} Nbd7 {[%emt 0:00:25]} 6. Bb2 {[%emt 0:00:22]} Be7 {[%emt 0:01:07]} 7. d4 {[%emt 0:02:05]} b6 {[%emt 0:00:29]} 8. Bd3 {[%emt 0:00:21]} Bb7 {[%emt 0:00:46]} 9. O-O {[%emt 0:00:22]} O-O {[%emt 0:00:19]} 10. Qe2 {[%emt 0:00:38]} c5 {[%emt 0:02:48]} 11. cxd5 {[%emt 0:15:55]} exd5 {[%emt 0:01:51]} 12. Rfd1 {[%emt 0:02:22]} Re8 {[%emt 0:03:21]} 13. Ba6 {[%emt 0:04:37]} Qb8 {[%emt 0:08:43]} 14. Rac1 {[%emt 0:07:06]} Bd6 {[%emt 0:13:03]} 15. h3 {[%emt 0:07:48]} (15. dxc5 $16 bxc5 16. Bxb7 Qxb7 17. Qd2) 15... cxd4 {[%emt 0:06:55]} 16. Nxd4 {[%emt 0:00:56]} Nc5 {[%emt 0:00:22]} ({Black should try} 16... Bh2+ 17. Kh1 Be5) 17. Bxb7 {[%emt 0:06:34]} Qxb7 {[%emt 0:00:12]} 18. Nf5 {[%emt 0:03:54]} Be5 {[%emt 0:03:03]} 19. b4 {[%emt 0:10:35]} Qd7 $2 {[%emt 0:09:32]} (19... Nce4 $16) 20. Nxg7 {[%emt 0:19:37]} Kxg7 {[%emt 0:03:17]} 21. bxc5 {[%emt 0:00:05]} bxc5 {[%emt 0:00:06]} 22. Nxd5 {[%emt 0:04:10]} Nxd5 {[%emt 0:01:32]} 23. Rxc5 {[%emt 0:00:24]} Rad8 {[%emt 0:08:08]} 24. Rcxd5 {[%emt 0:05:03]} Qxd5 {[%emt 0:00:07]} 25. Rxd5 {[%emt 0:00:02]} Rxd5 {[%emt 0:00:01]} 26. Qg4+ {[%emt 0:03:04]} Kf8 {[%emt 0:01:27]} 27. Ba3+ {[%emt 0:02:04]} Bd6 {[%emt 0:00:20]} 28. Bxd6+ {[%emt 0:00:25]} Rxd6 {[%emt 0:00:01]} 29. Qb4 {[%emt 0:00:07]} Red8 {[%emt 0:00:35]} 30. h4 {[%emt 0:00:17]} Kg8 {[%emt 0:00:34]} 31. g4 {[%emt 0:00:40]} a6 {[%emt 0:02:07]} 32. h5 {[%emt 0:00:37]} h6 {[%emt 0:01:03]} 33. a4 {[%emt 0:00:25]} Re6 {[%emt 0:00:44]} 34. Kg2 {[%emt 0:00:13]} Rde8 {[%emt 0:00:24]} 35. Kf3 {[%emt 0:00:16]} Rf6+ {[%emt 0:00:13]} 36. Kg3 {[%emt 0:00:04]} Rfe6 {[%emt 0:00:03]} 37. Qf4 {[%emt 0:00:37]} Kg7 {[%emt 0:01:32]} 38. Qd4+ {[%emt 0:00:37]} Kg8 {[%emt 0:00:34]} 39. Kf4 {[%emt 0:00:15]} Kh7 {[%emt 0:01:10]} 40. e4 {[%emt 0:00:16]} R8e7 {[%emt 0:01:01]} 41. Kf5 {[%emt 0:30:54]} Rb7 {[%emt 0:33:50]} 42. f4 {[%emt 0:01:01]} Reb6 {[%emt 0:03:41]} 43. Qc4 {[%emt 0:01:35]} Kg7 {[%emt 0:01:06]} 44. g5 {[%emt 0:00:29]} Re6 {[%emt 0:01:02]} 45. Qd4+ {[%emt 0:00:26]} Kg8 {[%emt 0:00:27]} 46. g6 {[%emt 0:00:38]} Rbe7 {[%emt 0:00:51]} 47. gxf7+ {[%emt 0:00:09]} Kxf7 {[%emt 0:00:16]} 48. Qc4 {[%emt 0:01:13]} Re8 {[%emt 0:00:23]} 49. a5 {[%emt 0:00:24]} R8e7 {[%emt 0:00:06]} 50. e5 $18 {[%emt 0:00:05]} Re8 {[%emt 0:00:08]} 51. Qd5 {[%emt 0:00:22]} R8e7 {[%emt 0:00:11]} 52. Ke4 {[%emt 0:00:17]} 1-0